bitfinex-derivatives/quotes_BNBF0:USTF0_20251027
["timestamp","ask_amount","ask_price","bid_price","bid_amount"]
[1761578536913,0.50955899,1141.4,1139.7,0.932]
[1761578537115,0.50955899,1141.3,1139.7,0.932]
[1761578537313,0.50955899,1141.2,1139.7,0.932]
[1761578537513,0.64850328,1141.5,1139.7,0.932]
[1761578537715,0.51002875,1141.4,1139.7,0.932]
[1761578537915,0.51002875,1141.3,1139.7,0.932]
[1761578538114,0.64850328,1141.7,1139.7,0.932]
[1761578538313,0.51056172,1141.6,1139.7,0.932]
[1761578538517,0.51056172,1141.5,1139.7,0.932]
[1761578538713,0.51056172,1141.4,1139.7,0.932]
[1761578538914,0.51056172,1141.3,1139.7,0.932]
[1761578539117,0.51056172,1141.2,1139.7,0.932]
[1761578539319,0.64850328,1141.8,1139.7,0.932]
[1761578539620,0.51092419,1141.7,1139.7,0.932]
[1761578539818,0.51092419,1141.6,1139.7,0.932]
[1761578540017,0.51092419,1141.5,1139.7,0.932]
[1761578540215,0.51092419,1141.4,1139.7,0.932]
[1761578540415,0.51092419,1141.3,1139.7,0.932]
[1761578540615,0.51092419,1141.2,1139.7,0.932]
[1761578540814,0.64850328,1141.8,1139.7,0.932]
[1761578541018,0.51124369,1141.7,1139.7,0.932]
[1761578541220,0.51124369,1141.6,1139.7,0.932]
[1761578541420,0.64850328,1141.7,1139.7,0.932]
[1761578541421,0.51124369,1141.5,1139.7,0.932]
[1761578541620,0.51124369,1141.4,1139.3,1.44686689]
[1761578541819,0.51124369,1141.3,1139.3,1.44686689]
[1761578542017,0.51124369,1141.2,1139.3,1.44686689]
[1761578542216,0.51124369,1141.1,1139.3,1.44686689]
[1761578542519,0.64850328,1141.7,1139.4,1.2942651]
[1761578542715,0.5117038,1141.6,1139.4,1.2942651]
[1761578542919,0.5117038,1141.5,1139.3,1.44686689]
[1761578543119,0.5117038,1141.4,1139.3,1.44686689]
[1761578543320,0.5117038,1141.3,1139.3,1.44686689]
[1761578543519,0.64850328,1141.7,1139.3,1.44686689]
[1761578543520,0.5117038,1141.2,1139.3,1.44686689]
[1761578543721,0.5117038,1141.1,1139.3,1.44686689]
[1761578543916,0.64850328,1141.7,1139.3,1.44686689]
[1761578544220,0.51180737,1141.6,1139.3,1.44686689]
[1761578544418,0.51180737,1141.5,1139.3,1.44686689]
[1761578544720,0.51180737,1141.4,1139.3,1.44686689]
[1761578545018,0.51180737,1141.3,1139.3,1.44686689]
[1761578545217,0.51180737,1141.2,1139.3,1.44686689]
[1761578545417,0.64850328,1141.7,1139.3,1.44686689]
[1761578545418,0.51180737,1141.1,1139.3,1.44686689]
[1761578545617,0.64850328,1141.7,1139.3,0.15260179]
[1761578545821,0.51185869,1141.6,1139.3,0.15260179]
[1761578546120,0.51185869,1141.5,1139.3,0.15260179]
[1761578546320,0.51185869,1141.4,1139.3,1.44686689]
[1761578546519,0.51185869,1141.3,1139.3,1.44686689]
[1761578546820,0.51185869,1141.2,1139.3,1.44686689]
[1761578547019,0.51185869,1141.1,1139.3,1.44686689]
[1761578547320,0.51185869,1141.0,1139.3,1.44686689]
[1761578547519,0.64850328,1141.6,1139.3,1.44686689]
[1761578547721,1.1604845,1141.5,1139.3,0.15260179]
[1761578547924,0.51198122,1141.4,1139.3,0.15260179]
[1761578548125,0.51198122,1141.3,1139.3,0.15260179]
[1761578548324,0.51198122,1141.2,1139.5,1.2942651]
[1761578548524,0.51198122,1141.1,1139.5,1.2942651]
[1761578548724,0.51198122,1141.0,1139.5,1.2942651]
[1761578548920,0.51198122,1140.9,1139.5,1.2942651]
[1761578549125,0.64850328,1141.3,1139.5,1.2942651]
[1761578549325,0.51230444,1141.2,1139.5,1.2942651]
[1761578549621,0.51230444,1141.1,1139.5,1.2942651]
[1761578549825,0.51230444,1141.0,1139.5,1.2942651]
[1761578550023,0.51230444,1140.9,1139.5,1.2942651]
[1761578550326,0.64850328,1141.3,1139.5,1.2942651]
[1761578550524,0.86467105,1141.5,1139.5,1.2942651]
[1761578550525,1.16062377,1141.2,1139.5,1.2942651]
[1761578550725,0.51212049,1141.1,1139.5,1.2942651]
[1761578550922,0.51212049,1141.0,1139.5,1.2942651]
[1761578551124,0.51212049,1140.9,1139.5,1.2942651]
[1761578551324,0.51212049,1140.8,1139.5,1.2942651]
[1761578551527,0.64850328,1141.2,1139.5,1.2942651]
[1761578551726,0.51183852,1141.1,1139.5,1.2942651]
[1761578552027,0.51183852,1141.0,1139.3,1.44686689]
[1761578552238,0.51183852,1140.9,1139.3,1.44686689]
[1761578552427,0.51183852,1140.8,1139.3,1.44686689]
[1761578552627,0.64850328,1141.2,1139.3,1.44686689]
[1761578552828,0.5118282,1141.1,1139.3,1.44686689]
[1761578553028,0.5118282,1141.0,1139.3,1.44686689]
[1761578553230,0.5118282,1140.9,1139.3,1.44686689]
[1761578553431,0.5118282,1140.8,1139.3,1.44686689]
[1761578553631,0.64850328,1141.2,1139.3,1.44686689]
[1761578553830,0.51177542,1141.1,1139.3,1.44686689]
[1761578554032,0.51177542,1141.0,1139.3,0.15260179]
[1761578554231,0.51177542,1140.9,1139.3,0.15260179]
[1761578554436,0.51177542,1140.8,1139.3,1.44686689]
[1761578554734,0.51177542,1140.7,1139.3,0.15260179]
[1761578554932,0.64850328,1141.1,1139.3,0.15260179]
[1761578555135,0.51169636,1141.0,1139.3,0.15260179]
[1761578555437,0.51169636,1140.9,1139.3,0.15260179]
[1761578555732,0.51169636,1140.8,1139.2,1.2942651]
[1761578555932,0.51169636,1140.7,1139.1,1.2942651]
[1761578556134,0.64850328,1140.8,1139.1,1.2942651]
[1761578556135,0.51169636,1140.6,1139.1,1.2942651]
[1761578556336,0.51169636,1140.5,1139.0,1.2942651]
[1761578556536,0.51169636,1140.4,1139.0,1.2942651]
[1761578556733,0.51169636,1140.3,1138.9,1.44692514]
[1761578556934,0.64850328,1140.7,1138.9,1.44692514]
[1761578557239,1.15967574,1140.6,1138.9,0.15266004]
[1761578557438,0.51117246,1140.5,1138.9,0.15266004]
[1761578557637,0.51117246,1140.4,1138.9,0.15266004]
[1761578557837,0.51117246,1140.3,1138.9,0.15266004]
[1761578558039,0.64850328,1140.9,1138.9,0.15266004]
[1761578558338,0.51084515,1140.8,1138.9,0.15266004]
[1761578558532,0.51084515,1140.7,1138.9,0.15266004]
[1761578558737,0.51084515,1140.6,1138.9,0.15266004]
[1761578558933,0.51084515,1140.5,1138.9,0.15266004]
[1761578559138,0.51084515,1140.4,1138.9,0.15266004]
[1761578559439,0.51084515,1140.3,1138.9,0.15266004]
[1761578559634,0.51030417,1140.2,1138.6,1.2942651]
[1761578559836,0.51030417,1140.1,1138.6,0.15272502]
[1761578560034,0.64850328,1140.4,1138.6,0.15272502]
[1761578560237,0.51023041,1140.3,1138.6,0.15272502]
[1761578560534,0.51023041,1140.2,1138.6,0.15272502]
[1761578560738,0.51023041,1140.1,1138.6,0.15272502]
[1761578560935,0.64850328,1140.5,1138.6,0.15272502]
[1761578561139,0.50987379,1140.4,1138.6,0.15272502]
[1761578561438,0.64850328,1140.5,1138.6,0.15272502]
[1761578561439,0.50987379,1140.3,1138.6,0.15272502]
[1761578561641,0.50987379,1140.2,1138.6,0.15272502]
[1761578561837,0.50987379,1140.1,1138.4,1.032]
[1761578562041,0.50987379,1140.0,1138.4,1.032]
[1761578562239,0.5094184,1139.9,1138.4,1.032]
[1761578562437,0.64850328,1140.4,1138.4,1.032]
[1761578562641,0.50899216,1140.3,1138.4,1.032]
[1761578562838,0.50899216,1140.2,1138.4,1.032]
[1761578563041,0.50899216,1140.1,1138.4,1.032]
[1761578563339,0.50899216,1140.0,1138.4,1.032]
[1761578563538,0.50899216,1139.9,1138.4,1.032]
[1761578563738,0.64850328,1140.3,1138.4,1.032]
[1761578563943,0.50882632,1140.2,1138.4,1.032]
[1761578564141,0.50882632,1140.1,1138.4,1.032]
[1761578564342,0.50882632,1140.0,1138.4,1.032]
[1761578564541,0.50882632,1139.9,1138.4,1.032]
[1761578564745,0.64850328,1140.3,1138.4,1.032]
[1761578564947,0.50829024,1140.2,1138.4,1.032]
[1761578565146,0.50829024,1140.1,1138.4,1.032]
[1761578565345,0.50829024,1140.0,1138.4,1.032]
[1761578565543,0.64850328,1140.3,1138.4,1.032]
[1761578565544,0.50829024,1139.9,1138.4,1.032]
[1761578565748,0.64850328,1140.3,1138.4,1.032]
[1761578565949,0.50796872,1140.2,1138.4,1.032]
[1761578566244,0.50796872,1140.1,1138.4,1.032]
[1761578566450,0.50796872,1140.0,1138.4,1.032]
[1761578566645,0.50796872,1139.9,1138.4,1.032]
[1761578566845,0.64850328,1140.3,1138.4,1.032]
[1761578567048,0.50769346,1140.2,1138.4,1.032]
[1761578567348,0.50769346,1140.1,1138.4,1.032]
[1761578567550,0.50769346,1140.0,1138.4,1.032]
[1761578567745,0.50769346,1139.9,1138.4,1.032]
[1761578567945,0.64850328,1140.3,1138.4,1.032]
[1761578568148,0.50744708,1140.2,1138.4,1.032]
[1761578568344,0.50744708,1140.1,1138.4,1.032]
[1761578568550,0.50744708,1140.0,1138.4,1.032]
[1761578568746,0.64850328,1140.3,1138.4,1.032]
[1761578568946,0.5073811,1140.2,1138.4,1.032]
[1761578569245,0.5073811,1140.1,1138.4,1.032]
[1761578569449,0.5073811,1140.0,1138.4,1.032]
[1761578569750,0.64850328,1140.4,1138.4,1.032]
[1761578570046,0.50716223,1140.3,1138.4,1.032]
[1761578570249,0.50716223,1140.2,1138.4,1.032]
[1761578570449,0.50716223,1140.1,1138.4,1.032]
[1761578570646,0.50716223,1140.0,1138.4,1.032]
[1761578570946,0.64850328,1140.4,1138.4,1.032]
[1761578571144,0.50698297,1140.3,1138.4,1.032]
[1761578571446,0.50698297,1140.2,1138.4,1.032]
[1761578571643,0.50698297,1140.1,1138.4,1.032]
[1761578571847,0.50698297,1140.0,1138.4,1.032]
[1761578572044,0.64850328,1140.6,1138.4,1.032]
[1761578572350,0.50688173,1140.5,1138.4,1.032]
[1761578572649,0.50688173,1140.4,1138.4,1.032]
[1761578572849,0.50688173,1140.3,1138.4,1.032]
[1761578573049,0.50688173,1140.2,1138.4,1.032]
[1761578573245,0.50688173,1140.1,1138.4,1.032]
[1761578573448,0.50688173,1140.0,1138.4,1.032]
[1761578573652,0.64850328,1140.6,1138.4,1.032]
[1761578573852,0.50686282,1140.5,1138.4,1.032]
[1761578574054,0.50686282,1140.4,1138.4,1.032]
[1761578574249,0.50686282,1140.3,1138.4,1.032]
[1761578574449,0.50686282,1140.2,1138.4,1.032]
[1761578574649,0.50686282,1140.1,1138.4,1.032]
[1761578574952,0.50686282,1140.0,1138.4,1.032]
[1761578575154,0.64850328,1140.6,1138.4,1.032]
[1761578575354,0.50759453,1140.5,1138.4,1.032]
[1761578575556,0.50759453,1140.4,1138.4,1.032]
[1761578575852,0.50759453,1140.3,1138.4,1.032]
[1761578576053,0.64850328,1140.6,1138.4,1.032]
[1761578576054,0.50759453,1140.2,1138.4,1.032]
[1761578576350,0.50759453,1140.1,1138.4,1.032]
[1761578576654,0.50759453,1140.0,1138.4,1.032]
[1761578576854,0.64850328,1140.6,1138.4,1.032]
[1761578577052,1.15623224,1140.5,1138.4,1.032]
[1761578577250,0.50772896,1140.4,1138.4,1.032]
[1761578577455,0.50772896,1140.3,1138.4,1.032]
[1761578577650,0.50772896,1140.2,1138.4,1.032]
[1761578577851,0.50772896,1140.1,1138.4,1.032]
[1761578578053,0.64850328,1140.5,1138.4,1.032]
[1761578578250,0.5079221,1140.4,1138.4,1.032]
[1761578578452,0.5079221,1140.3,1138.4,1.032]
[1761578578655,0.5079221,1140.2,1138.4,1.032]
[1761578578950,0.5079221,1140.1,1138.4,1.032]
[1761578579252,0.5079221,1140.0,1138.4,1.032]
[1761578579453,0.64850328,1140.5,1138.4,1.032]
[1761578579651,1.15691614,1140.4,1138.4,1.032]
[1761578579854,0.50841286,1140.3,1138.4,1.032]
[1761578580156,0.64850328,1140.4,1138.4,1.032]
[1761578580157,0.50841286,1140.2,1138.4,1.032]
[1761578580357,0.50841286,1140.1,1138.4,1.032]
[1761578580560,0.50841286,1140.0,1138.4,1.032]
[1761578580755,0.64850328,1140.4,1138.4,1.032]
[1761578580960,0.50840944,1140.3,1138.4,1.032]
[1761578581154,0.50840944,1140.2,1138.4,1.032]
[1761578581356,0.50840944,1140.1,1138.4,1.032]
[1761578581561,0.64850328,1140.5,1138.4,1.032]
[1761578581766,0.50852582,1140.4,1138.4,1.032]
[1761578582062,0.64850328,1140.8,1138.4,1.032]
[1761578582262,0.50860225,1140.7,1138.4,1.032]
[1761578582462,0.50860225,1140.6,1138.4,1.032]
[1761578582762,0.50860225,1140.5,1138.4,1.032]
[1761578583060,0.64850328,1140.8,1138.4,1.032]
[1761578583264,0.50880676,1140.7,1138.4,1.032]
[1761578583459,0.50880676,1140.6,1138.4,1.032]
[1761578583665,0.64850328,1141.0,1138.4,1.032]
[1761578583865,0.50896492,1140.9,1138.4,1.032]
[1761578584062,0.50896492,1140.8,1138.4,1.032]
[1761578584262,0.50896492,1140.7,1138.4,1.032]
[1761578584563,0.50896492,1140.6,1138.4,1.032]
[1761578584862,0.64850328,1141.1,1138.4,1.032]
[1761578585060,0.50924352,1141.0,1138.5,1.2942651]
[1761578585261,0.50924352,1140.9,1138.5,1.2942651]
[1761578585565,0.64850328,1141.2,1138.5,1.2942651]
[1761578585769,0.50946236,1141.1,1138.6,1.2942651]
[1761578586065,0.50946236,1141.0,1138.6,1.2942651]
[1761578586265,0.50946236,1140.9,1138.6,1.2942651]
[1761578586464,0.64850328,1141.2,1138.6,1.2942651]
[1761578586762,0.50969758,1141.1,1138.6,1.2942651]
[1761578586965,0.50969758,1141.0,1138.6,1.2942651]
[1761578587261,0.50969758,1140.9,1138.6,1.2942651]
[1761578587462,0.64850328,1141.3,1138.7,1.2942651]
[1761578587662,0.50989375,1141.2,1138.8,1.2942651]
[1761578587863,0.50989375,1141.1,1138.9,1.2942651]
[1761578588062,0.64850328,1141.5,1138.8,1.2942651]
[1761578588266,1.15838675,1141.4,1138.9,1.2942651]
[1761578588468,0.50988347,1141.3,1138.8,1.2942651]
[1761578588663,0.50988347,1141.2,1138.8,1.2942651]
[1761578588867,0.50988347,1141.1,1138.9,1.2942651]
[1761578589068,0.64850328,1141.4,1138.9,1.2942651]
[1761578589270,0.5099373,1141.3,1138.9,1.2942651]
[1761578589471,0.5099373,1141.2,1138.8,1.2942651]
[1761578589670,0.5099373,1141.1,1138.8,1.2942651]
[1761578589868,0.64850328,1141.5,1138.7,1.2942651]
[1761578590067,0.50988621,1141.4,1138.7,1.2942651]
[1761578590369,0.50988621,1141.3,1138.7,1.2942651]
[1761578590567,0.50988621,1141.2,1138.7,1.2942651]
[1761578590766,0.50988621,1141.1,1138.7,1.2942651]
[1761578590969,0.64850328,1141.5,1138.7,1.2942651]
[1761578591266,0.50984302,1141.4,1138.6,1.2942651]
[1761578591465,0.50984302,1141.3,1138.6,1.2942651]
[1761578591669,0.50984302,1141.2,1138.7,1.2942651]
[1761578591866,0.50984302,1141.1,1138.7,1.2942651]
[1761578592065,0.64850328,1141.5,1138.7,1.2942651]
[1761578592369,0.509831,1141.4,1138.7,1.2942651]
[1761578592570,0.509831,1141.3,1138.4,2.3262651]
[1761578592766,0.509831,1141.2,1138.4,2.3262651]
[1761578592971,0.509831,1141.1,1138.4,2.3262651]
[1761578593169,0.64850328,1141.6,1138.4,2.3262651]
[1761578593367,0.50980574,1141.5,1138.4,1.032]
[1761578593572,0.64850328,1141.3,1138.6,1.2942651]
[1761578593770,0.50980574,1141.2,1138.7,1.2942651]
[1761578594068,0.50980574,1141.1,1138.7,1.2942651]
[1761578594274,0.50980574,1141.0,1138.7,1.2942651]
[1761578594471,0.64850328,1141.3,1138.7,1.2942651]
[1761578594669,0.50982485,1141.2,1138.7,1.2942651]
[1761578594868,0.50982485,1141.1,1138.7,1.2942651]
[1761578595070,0.64850328,1141.5,1138.7,1.2942651]
[1761578595273,0.5097943,1141.4,1138.7,1.2942651]
[1761578595473,0.5097943,1141.3,1138.7,1.2942651]
[1761578595671,0.5097943,1141.2,1138.8,1.2942651]
[1761578595875,0.5097943,1141.1,1138.4,2.3262651]
[1761578596170,0.5097943,1141.0,1138.4,2.3262651]
[1761578596375,0.64850328,1141.5,1138.4,2.3262651]
[1761578596669,0.50977337,1141.4,1138.3,1.44701694]
[1761578596874,0.50977337,1141.3,1138.3,1.44701694]
[1761578597071,0.50977337,1141.2,1138.3,1.44701694]
[1761578597270,0.50977337,1141.1,1138.4,1.2942651]
[1761578597476,0.50977337,1141.0,1138.4,1.2942651]
[1761578597770,0.64850328,1141.5,1138.4,1.2942651]
[1761578597970,0.50977062,1141.4,1138.4,1.2942651]
[1761578598174,0.50977062,1141.3,1138.4,1.2942651]
[1761578598375,0.50977062,1141.2,1138.4,1.2942651]
[1761578598574,0.50977062,1141.1,1138.4,1.2942651]
[1761578598773,0.64850328,1141.7,1138.9,1.2942651]
[1761578599073,0.50974541,1141.6,1139.0,1.021]
[1761578599276,0.50974541,1141.5,1139.0,1.021]
[1761578599472,0.50974541,1141.4,1139.0,1.021]
[1761578599676,0.50974541,1141.3,1139.0,1.021]
[1761578599976,0.64850328,1141.7,1139.0,1.021]
[1761578600277,0.5096259,1141.6,1139.0,1.021]
[1761578600574,0.5096259,1141.5,1139.0,1.021]
[1761578600776,0.5096259,1141.4,1139.0,1.021]
[1761578600976,0.5096259,1141.3,1139.0,1.021]
[1761578601177,0.64850328,1141.8,1139.1,1.2942651]
[1761578601377,0.50964906,1141.7,1139.1,1.2942651]
[1761578601573,0.64850328,1142.4,1139.0,1.021]
[1761578601872,0.50957999,1142.3,1139.0,1.021]
[1761578602073,0.50957999,1142.2,1139.0,1.021]
[1761578602273,0.50957999,1142.1,1139.0,1.021]
[1761578602473,0.50957999,1142.0,1139.0,1.021]
[1761578602675,0.50957999,1141.9,1139.0,1.021]
[1761578602874,0.50957999,1141.8,1139.0,1.021]
[1761578603075,0.50957999,1141.7,1139.0,1.021]
[1761578603278,0.64850328,1142.4,1139.0,1.021]
[1761578603575,0.50933146,1142.3,1139.0,1.021]
[1761578603778,0.64850328,1142.1,1139.4,1.2942651]
[1761578603974,0.50933146,1142.0,1139.4,1.2942651]
[1761578604177,0.50933146,1141.9,1139.4,1.2942651]
[1761578604374,0.50933146,1141.8,1139.4,1.2942651]
[1761578604674,0.64850328,1142.1,1139.4,1.2942651]
[1761578604877,0.50910626,1142.0,1139.4,1.2942651]
[1761578605075,0.50910626,1141.9,1139.4,1.2942651]
[1761578605278,0.50910626,1141.8,1139.4,1.2942651]
[1761578605479,0.64850328,1142.1,1139.4,1.2942651]
[1761578605775,0.50893063,1142.0,1139.4,1.2942651]
[1761578605979,0.50893063,1141.9,1139.4,1.2942651]
[1761578606178,0.50893063,1141.8,1139.4,1.2942651]
[1761578606382,0.64850328,1142.2,1139.4,1.2942651]
[1761578606582,0.50872418,1142.1,1139.4,1.2942651]
[1761578606778,0.50872418,1142.0,1139.4,1.2942651]
[1761578606983,0.50872418,1141.9,1139.5,0.896]
[1761578607182,0.64850328,1142.2,1139.5,0.896]
[1761578607481,0.50843547,1142.1,1139.6,1.2942651]
[1761578607680,0.64850328,1142.4,1139.6,1.2942651]
[1761578607883,0.50841774,1142.3,1139.6,1.2942651]
[1761578608079,0.50841774,1142.2,1139.6,1.2942651]
[1761578608283,0.50841774,1142.1,1139.5,2.1902651]
[1761578608578,0.64850328,1142.4,1139.5,2.1902651]
[1761578608784,0.50790136,1142.3,1139.5,2.1902651]
[1761578609081,0.50790136,1142.2,1139.5,2.1902651]
[1761578609278,0.50790136,1142.1,1139.5,0.896]
[1761578609484,0.64850328,1142.4,1139.5,0.896]
[1761578609683,0.50765191,1142.3,1139.5,0.896]
[1761578609881,0.50765191,1142.2,1139.5,0.896]
[1761578610085,0.50765191,1142.1,1139.5,0.896]
[1761578610382,0.50765191,1142.0,1139.5,0.896]
[1761578610582,0.64850328,1142.4,1139.5,0.896]
[1761578610781,0.50741417,1142.3,1139.5,0.896]
[1761578610984,0.50741417,1142.2,1139.5,0.896]
[1761578611183,0.50741417,1142.1,1139.5,0.896]
[1761578611388,0.50741417,1142.0,1139.5,0.896]
[1761578611589,0.50741417,1141.9,1139.5,0.896]
[1761578611789,0.64850328,1142.2,1139.5,0.896]
[1761578611986,0.50699168,1142.1,1139.5,0.896]
[1761578612189,0.50699168,1142.0,1139.5,0.896]
[1761578612485,0.50699168,1141.9,1139.5,0.896]
[1761578612788,0.64850328,1142.2,1139.5,0.896]
[1761578612989,0.50682541,1142.1,1139.5,0.896]
[1761578613183,0.50682541,1142.0,1139.5,0.896]
[1761578613387,0.50682541,1141.9,1139.5,0.896]
[1761578613586,0.64850328,1142.2,1139.5,0.896]
[1761578613787,0.50676457,1142.1,1139.5,0.896]
[1761578613986,0.50676457,1142.0,1139.5,0.896]
[1761578614187,0.50676457,1141.9,1139.5,0.896]
[1761578614385,0.64850328,1142.2,1139.5,0.896]
[1761578614591,0.50636328,1142.1,1139.5,0.896]
[1761578614786,0.50636328,1142.0,1139.5,0.896]
[1761578614987,0.50636328,1141.9,1139.5,0.896]
[1761578615290,0.86467105,1142.5,1139.5,0.896]
[1761578615291,0.64850328,1142.3,1139.5,0.896]
[1761578615491,0.50621212,1142.2,1139.5,0.896]
[1761578615691,0.50621212,1142.1,1139.5,0.896]
[1761578615890,0.50621212,1142.0,1139.5,0.896]
[1761578616090,0.50621212,1141.9,1139.5,0.896]
[1761578616290,0.50614238,1141.8,1139.5,0.896]
[1761578616489,0.50614238,1141.7,1139.5,0.896]
[1761578616689,0.64349368,1142.2,1139.5,0.896]
[1761578616889,0.50604129,1142.1,1139.5,0.896]
[1761578617092,0.64349368,1142.2,1139.5,0.896]
[1761578617093,0.50604129,1142.0,1139.5,0.896]
[1761578617389,0.50604129,1141.9,1139.5,0.896]
[1761578617590,0.50604129,1141.8,1139.5,0.896]
[1761578617792,0.64349368,1142.2,1139.5,0.896]
[1761578617993,0.50596957,1142.1,1139.5,0.896]
[1761578618288,0.50596957,1142.0,1139.5,0.896]
[1761578618493,0.50596957,1141.9,1139.5,0.896]
[1761578618691,0.50596957,1141.8,1139.5,0.896]
[1761578618889,0.64349368,1142.2,1139.5,0.896]
[1761578619090,0.50601326,1142.1,1139.5,0.896]
[1761578619287,0.50601326,1142.0,1139.5,0.896]
[1761578619491,0.50601326,1141.9,1139.5,0.896]
[1761578619691,0.50601326,1141.8,1139.5,0.896]
[1761578619891,0.64349368,1142.2,1139.5,0.896]
[1761578620092,0.50557188,1142.1,1139.5,0.896]
[1761578620387,0.50557188,1142.0,1139.5,0.896]
[1761578620590,0.50557188,1141.9,1139.5,0.896]
[1761578620789,0.50557188,1141.8,1139.5,0.896]
[1761578620993,0.64349368,1142.2,1139.5,0.896]
[1761578621188,0.50577095,1142.1,1139.5,0.896]
[1761578621389,0.50577095,1142.0,1139.5,0.896]
[1761578621591,0.50577095,1141.9,1139.5,0.896]
[1761578621788,0.50577095,1141.8,1139.5,0.896]
[1761578621992,0.50577095,1141.7,1139.5,0.896]
[1761578622190,0.50577095,1141.6,1139.5,0.896]
[1761578622389,0.64349368,1142.0,1139.5,0.896]
[1761578622589,0.50578903,1141.9,1139.5,0.896]
[1761578622793,0.50578903,1141.8,1139.5,0.896]
[1761578623090,0.50578903,1141.7,1139.5,0.896]
[1761578623294,0.50578903,1141.6,1139.5,0.896]
[1761578623491,0.64349368,1142.0,1139.5,0.896]
[1761578623695,1.14941365,1141.9,1139.5,0.896]
[1761578623992,0.50591997,1141.8,1139.5,0.896]
[1761578624190,0.50591997,1141.7,1139.5,0.896]
[1761578624391,0.50591997,1141.6,1139.5,0.896]
[1761578624692,0.50591997,1141.5,1139.5,0.896]
[1761578624890,0.64349368,1141.9,1139.5,0.896]
[1761578625095,0.50605599,1141.8,1139.5,0.896]
[1761578625292,0.50605599,1141.7,1139.5,0.896]
[1761578625495,0.50605599,1141.6,1139.5,0.896]
[1761578625791,0.50605599,1141.5,1139.5,0.896]
[1761578625994,0.64349368,1142.1,1139.5,0.896]
[1761578626294,0.5062305,1142.0,1139.5,0.896]
[1761578626492,0.5062305,1141.9,1139.5,0.896]
[1761578626691,0.5062305,1141.8,1139.5,0.896]
[1761578626891,0.5062305,1141.7,1139.5,0.896]
[1761578627192,0.5062305,1141.6,1139.5,0.896]
[1761578627392,0.5062305,1141.5,1139.5,0.896]
[1761578627594,0.64349368,1142.1,1139.5,0.896]
[1761578627796,0.5066257,1142.0,1139.5,0.896]
[1761578628096,0.5066257,1141.9,1139.5,0.896]
[1761578628295,0.64349368,1141.7,1139.5,0.896]
[1761578628499,0.5066257,1141.6,1139.5,0.896]
[1761578628699,0.5066257,1141.5,1139.5,0.896]
[1761578628897,0.5066257,1141.4,1139.5,0.896]
[1761578629097,0.64349368,1141.7,1139.5,0.896]
[1761578629400,0.50700071,1141.6,1139.5,0.896]
[1761578629595,0.50700071,1141.5,1139.5,0.896]
[1761578629796,0.50700071,1141.4,1139.5,0.896]
[1761578629997,0.64349368,1141.7,1139.5,0.896]
[1761578630200,0.50715946,1141.6,1139.5,0.896]
[1761578630401,0.50715946,1141.5,1139.5,0.896]
[1761578630601,0.50715946,1141.4,1139.5,0.896]
[1761578630897,0.50715946,1141.3,1139.5,0.896]
[1761578631101,0.64349368,1141.7,1139.5,0.896]
[1761578631301,0.50748894,1141.6,1139.5,0.896]
[1761578631498,0.50748894,1141.5,1139.5,0.896]
[1761578631703,0.50748894,1141.4,1139.5,0.896]
[1761578631901,0.50748894,1141.3,1139.5,0.896]
[1761578632205,0.50761392,1141.2,1139.5,0.896]
[1761578632406,0.50761392,1141.1,1139.5,0.896]
[1761578632602,0.64349368,1141.4,1139.5,0.896]
[1761578632905,0.5078111,1141.3,1139.5,0.896]
[1761578633106,0.5078111,1141.2,1139.5,0.896]
[1761578633405,0.5078111,1141.1,1139.5,0.896]
[1761578633606,0.64349368,1141.4,1139.5,0.896]
[1761578633801,0.50807228,1141.3,1139.5,0.896]
[1761578634004,0.50807228,1141.2,1139.5,0.896]
[1761578634301,0.64349368,1141.5,1139.5,0.896]
[1761578634501,0.50843307,1141.4,1139.5,0.896]
[1761578634806,0.50843307,1141.3,1139.5,0.896]
[1761578635102,0.50843307,1141.2,1139.5,0.896]
[1761578635406,0.50876348,1141.1,1139.5,0.896]
[1761578635602,0.64349368,1141.5,1139.5,0.896]
[1761578635903,0.50876328,1141.4,1139.5,0.896]
[1761578636106,0.50876328,1141.3,1139.5,0.896]
[1761578636303,0.50876328,1141.2,1139.5,0.896]
[1761578636603,0.64349368,1141.6,1139.5,0.896]
[1761578636903,0.50920481,1141.5,1139.5,0.896]
[1761578637107,0.50920481,1141.4,1139.5,0.896]
[1761578637302,0.50920481,1141.3,1139.5,0.896]
[1761578637607,0.50920481,1141.2,1139.5,0.896]
[1761578637805,0.64349368,1141.6,1139.5,0.896]
[1761578638103,0.50952529,1141.5,1139.5,0.896]
[1761578638307,0.50952529,1141.4,1139.5,0.896]
[1761578638508,0.50952529,1141.3,1139.5,0.896]
[1761578638707,0.50952529,1141.2,1139.5,0.896]
[1761578638908,0.64349368,1141.6,1139.5,0.896]
[1761578639109,0.51003379,1141.5,1139.5,0.896]
[1761578639309,0.51003379,1141.4,1139.5,0.896]
[1761578639606,0.51003379,1141.3,1139.5,0.896]
[1761578639809,0.51003379,1141.2,1139.5,0.896]
[1761578640006,0.64349368,1141.6,1139.5,0.896]
[1761578640306,0.51049612,1141.5,1139.5,0.896]
[1761578640506,0.51049612,1141.4,1139.5,0.896]
[1761578640712,0.51049612,1141.3,1139.5,0.896]
[1761578641009,0.51049612,1141.2,1139.5,0.896]
[1761578641207,0.64349368,1141.5,1139.5,0.896]
[1761578641208,0.51049612,1141.1,1139.5,0.896]
[1761578641408,0.51080215,1141.0,1139.5,0.896]
[1761578641610,0.64349368,1141.4,1139.5,0.896]
[1761578641808,0.51077294,1141.3,1139.5,0.896]
[1761578642010,0.51077294,1141.2,1139.5,0.896]
[1761578642311,0.51077294,1141.1,1139.5,0.896]
[1761578642612,0.51077294,1141.0,1139.5,0.896]
[1761578642812,0.51077294,1140.9,1139.5,0.896]
[1761578643013,0.51077294,1140.8,1139.5,0.896]
[1761578643213,0.64349368,1141.2,1139.5,0.896]
[1761578643514,0.51096969,1141.1,1139.5,0.896]
[1761578643712,0.51096969,1141.0,1139.5,0.896]
[1761578644012,0.51096969,1140.9,1139.5,0.896]
[1761578644309,0.51101094,1140.8,1139.5,0.896]